Cogmind - Beta 9.3 @@@ ROGUE MODE // 2019.12.24 @ 03:25:34 Player: HybriD Result: Destroyed by S-10 Pest with Light Assault Rifle Performance ------------- Evolutions (1) 500 Regions Visited (4) 800 Robots Destroyed (16) 80 Value Destroyed (357) 357 Prototype IDs (3) 60 Alien Tech Used (0) 0 Bonus (0) 0 TOTAL SCORE: 1797 Bonus ------- None Cogmind --------- Core Integrity 0/400 Matter 277/300 Energy 80/100 System Corruption 2% Temperature Cool (0) Movement Core (50) Location -9/Storage Parts ------- > --- POWER (1) -------- (None) > --- PROPULSION (4) --- (None) > --- UTILITY (2) ------ (None) > --- WEAPON (2) ------- (None) > --- INVENTORY (4) ---- Light Ion Engine Light Regenerative Plating Drone Bay (2/2) Peak State ------------ > --- POWER ------------ Ion Engine > --- PROPULSION ------- Flight Unit VTOL Module VTOL Module VTOL Module > --- UTILITY ---------- Heat Sink Medium Storage Unit > --- WEAPON ----------- Particle Gun Particle Cannon > --- INVENTORY -------- VTOL Module Particle Cannon [Rating: 14] Favorites ----------- Power Light Ion Engine Engine Light Ion Engine Propulsion VTOL Module Leg Aluminum Leg Wheel Compact Wheel Flight Unit VTOL Module Utility Medium Storage Unit Device Heat Sink Storage Medium Storage Unit Protection Light Regenerative Plating Weapon Light Assault Rifle Energy Gun Particle Gun Energy Cannon Particle Cannon Ballistic Gun Light Assault Rifle Build | -11 -10 -10 -9 -9 ------- Run | Scr Mat Min Mat Sto Slots Evolved 2 | . . . 2 . Power . | . . . . . Propulsion 2 | . . . 2 . Utility . | . . . . . Weapon . | . . . . . Parts Attached 33 | 6 6 6 10 5 Power 4 | 1 . 1 1 1 Engine 4 | 1 . 1 1 1 Core . | . . . . . Reactor . | . . . . . Propulsion 14 | 2 4 1 6 1 Treads . | . . . . . Leg 1 | . . 1 . . Wheel 4 | 2 2 . . . Hover . | . . . . . Flight 9 | . 2 . 6 1 Utility 7 | 1 2 1 . 3 Device 3 | . 1 1 . 1 Storage 2 | 1 1 . . . Processor . | . . . . . Hackware . | . . . . . Protection 2 | . . . . 2 Artifact . | . . . . . Weapon 8 | 2 . 3 3 . Energy Gun 4 | 1 . 2 1 . Energy Cannon 3 | . . 1 2 . Ballistic Gun 1 | 1 . . . . Ballistic Cannon . | . . . . . Launcher . | . . . . . Special Weapon . | . . . . . Impact Weapon . | . . . . . Slashing Weapon . | . . . . . Piercing Weapon . | . . . . . Special Melee Weapon . | . . . . . Unidentified Prototypes 1 | . . . . 1 Parts Lost 17 | . . 6 8 3 Power 4 | . . 2 1 1 Propulsion 7 | . . 1 4 2 Utility 2 | . . 1 1 . Weapon 4 | . . 2 2 . Highest Loss Streak 8 | . . 3 8 3 Average Slot Usage (%) 42 | . 88 86 55 11 Engine 4 | . 14 10 6 . Leg 1 | . . 7 . . Wheel 5 | . 25 14 . . Flight 9 | . 1 . 24 10 Device 4 | . 4 12 6 . Storage 5 | . 14 14 8 . Energy Gun 5 | . 14 17 2 . Ballistic Gun 2 | . 14 6 . . Naked Turns 14 | . . . . 14 Heaviest Build 21 | 9 15 17 21 4 Greatest Support 26 | 20 26 16 19 5 Greatest Overweight (x) 1 | . 1 1 1 1 Average Overweight (x) . | . . . . . Largest Inventory Capacity 10 | 6 10 8 8 4 Average Capacity 5 | 5 7 8 7 4 Most Carried 8 | 4 8 8 7 4 Average Carried 4 | 2 6 7 2 3 Final Capacity 8 | 6 8 8 4 4 Final Carried 8 | 4 8 8 3 3 Class Distribution -------------------- 89% | Mutant 10% | Scavenger-Mutant Dominant Class ---------------- Mutant | -10/Materials Scavenger-Mutant | -10/Mines Mutant | -9/Materials Mutant | -9/Storage Resources | -11 -10 -10 -9 -9 ----------- Run | Scr Mat Min Mat Sto Matter Collected 463 | 265 . 128 60 10 Remotely . | . . . . . Salvage Created 456 | 90 . 223 143 . Parts 25 | 4 . 6 15 . Haulers Intercepted . | . . . . . Recyclers Shooed 1 | 1 . . . . Parts Field Recycled . | . . . . . Retrieved Matter . | . . . . . Parts Self-Destructed . | . . . . . Prevented . | . . . . . Kills | -11 -10 -10 -9 -9 ------- Run | Scr Mat Min Mat Sto Combat Hostiles Destroyed 14 | . . 7 7 . Guns 10 | . . 7 3 . Cannons 4 | . . . 4 . Classes Destroyed 4 | 2 . 2 . . Tunneler 1 | 1 . . . . Recycler 1 | 1 . . . . Swarmer 7 | . . 3 4 . Grunt 7 | . . 4 3 . Best Kill Streak 6 | 2 . 2 6 . Combat Bots Only 6 | . . 2 6 . Max Kills in Single Turn 1 | 1 . 1 1 . Gunslinging . | . . . . . Exploded . | . . . . . Melee . | . . . . . Uniques/NPCs Destroyed . | . . . . . Combat | -11 -10 -10 -9 -9 -------- Run | Scr Mat Min Mat Sto Damage Taken 1691 | . 26 603 532 530 Core 568 | . . 165 104 299 Absorbed by Shields 92 | . . . . 92 Core Remaining (%) 67 | 100 . 34 . . Volleys Fired 65 | 5 1 34 25 . Largest 2 | 2 2 2 2 . Hottest 133 | 60 60 125 133 . Shots Fired 106 | 10 2 64 30 . Gun 78 | 10 2 60 6 . Cannon 28 | . . 4 24 . Launcher . | . . . . . Special . | . . . . . Kinetic 24 | 5 1 18 . . Thermal 82 | 5 1 46 30 . Explosive . | . . . . . Electromagnetic . | . . . . . Robot Hit Streak 13 | 1 1 13 3 . Robot Miss Streak 8 | 3 1 3 8 . Penetration Max . | . . . . . Secondary Targets 2 | . . 2 . . Max Gunslinging Chain 1 | . . 1 . . Shots Hit Robots 57 | 3 1 41 12 . Core Hits 25 | 3 . 14 7 1 Critical Hits . | . . . . . Critical Kills . | . . . . . Critical Parts Destroyed . | . . . . . Melee Attacks . | . . . . . Impact . | . . . . . Slashing . | . . . . . Piercing . | . . . . . Sneak Attacks . | . . . . . Combat Hostiles . | . . . . . Follow-up Attacks . | . . . . . Damage Inflicted 837 | 53 10 525 244 5 Guns 611 | 53 10 489 59 . Cannons 221 | . . 36 185 . Explosions . | . . . . . Melee . | . . . . . Ramming 5 | . . . . 5 Kinetic 112 | 9 10 93 . . Thermal 720 | 44 . 432 244 . Explosive . | . . . . . Electromagnetic . | . . . . . Impact . | . . . . . Slashing . | . . . . . Piercing . | . . . . . Highest Corruption 2 | . 1 1 . 2 Average Corruption 1 | . 1 1 . 2 Corruption Purged . | . . . . . Effects 4 | . . 4 . . Message Errors 2 | . . 2 . . Energy Discharges 1 | . . 1 . . Targeting Errors 1 | . . 1 . . Overload Shots . | . . . . . Overflow Damage 10 | . . 10 . . Projectiles 10 | . . 10 . . Explosions . | . . . . . Melee . | . . . . . Knockbacks . | . . . . . Impact . | . . . . . Kinetic . | . . . . . Secondary . | . . . . . Self-Inflicted Damage 2 | . . . . 2 Shots . | . . . . . Rammed 1 | . . . . 1 Targets Rammed 1 | . . . . 1 Kicked . | . . . . . Crushed . | . . . . . Highest Temperature 267 | 40 20 258 267 . Average Temperature 131 | 19 15 104 180 . Received Heat Transfer 481 | . . 189 132 160 Siege Activations . | . . . . . Robots Corrupted . | . . . . . Combat Hostiles . | . . . . . Parts Fried . | . . . . . Impact Corruptions . | . . . . . Robots Melted . | . . . . . Combat Hostiles . | . . . . . Parts Melted 2 | . . . 2 . Heat Transferred 1656 | 100 . 1075 481 . Parts Sabotaged . | . . . . . Parts Stolen . | . . . . . Parts Stripped . | . . . . . Power Chain Reactions . | . . . . . Missiles Intercepted . | . . . . . Alert | -11 -10 -10 -9 -9 ------- Run | Scr Mat Min Mat Sto Peak Influence 165 | 10 21 117 165 73 Average Influence 50 | 3 20 71 107 36 Maximum Alert Level . | . . . . . Low Security (%) 100 | 100 100 100 100 100 Level 1 . | . . . . . Level 2 . | . . . . . Level 3 . | . . . . . Level 4 . | . . . . . Level 5 . | . . . . . High Security . | . . . . . Max Security . | . . . . . Squads Dispatched 3 | . 1 . 1 1 Investigation . | . . . . . Extermination . | . . . . . Reinforcement 3 | . 1 . 1 1 Assault . | . . . . . Garrison . | . . . . . Intercept . | . . . . . Construction Impeded . | . . . . . Haulers Reinforced . | . . . . . Stealth | -11 -10 -10 -9 -9 --------- Run | Scr Mat Min Mat Sto Distress Signals 3 | . . . 1 2 Communications Jammed . | . . . . . Distress Signals . | . . . . . Times Spotted 38 | . 1 7 12 18 Peak Tracking Total 12 | . . 3 8 12 Tactical Retreats 4 | . . . 2 2 Traps | -11 -10 -10 -9 -9 ------- Run | Scr Mat Min Mat Sto Traps Triggered 3 | . 1 . . 2 Indirectly . | . . . . . Trap Hack Attempts . | . . . . . Triggered . | . . . . . Disarmed . | . . . . . Reprogrammed . | . . . . . Reused . | . . . . . Traps Extracted . | . . . . . Installed . | . . . . . Triggered . | . . . . . Machines | -11 -10 -10 -9 -9 ---------- Run | Scr Mat Min Mat Sto Machines Disabled 1 | . . . 1 . Max in Single Turn 1 | . . . 1 . Machines Sabotaged . | . . . . . Garrisons Compromised . | . . . . . Overloaded Fab Kills . | . . . . . Fab Network Shutdowns . | . . . . . Hacking | -11 -10 -10 -9 -9 --------- Run | Scr Mat Min Mat Sto Machines Accessed 7 | . . . 2 5 Terminals 6 | . . . 1 5 Fabricators . | . . . . . Repair Stations . | . . . . . Recycling Units 1 | . . . 1 . Scanalyzers . | . . . . . Garrison Access . | . . . . . Total Hacks 19 | . . . 7 12 Successful 10 | . . . 3 7 Failed 9 | . . . 4 5 Catastrophic 1 | . . . . 1 Database Lockouts . | . . . . . Manual 3 | . . . 2 1 Terminals 17 | . . . 5 12 Fabricators . | . . . . . Repair Stations . | . . . . . Recycling Units 2 | . . . 2 . Scanalyzers . | . . . . . Garrison Access . | . . . . . Terminal Hacks 9 | . . . 2 7 Prototype ID Bank 1 | . . . . 1 Open Door 2 | . . . . 2 Branch Access Points 1 | . . . 1 . Emergency Access Points 1 | . . . . 1 Alert Level 2 | . . . 1 1 Locate Traps 1 | . . . . 1 Zone Layout 1 | . . . . 1 Fabricator Hacks . | . . . . . Repair Station Hacks . | . . . . . Recycling Unit Hacks 1 | . . . 1 . Report Inventory 1 | . . . 1 . Scanalyzer . | . . . . . Garrison Access Hacks . | . . . . . Unauthorized Hacks . | . . . . . Terminals . | . . . . . Fabricators . | . . . . . Repair Stations . | . . . . . Recycling Units . | . . . . . Scanalyzers . | . . . . . Garrison Access . | . . . . . Data Cores Recovered . | . . . . . Used . | . . . . . Hacking Detections 4 | . . . 1 3 Full Trace Events . | . . . . . Feedback Events . | . . . . . Feedback Blocked . | . . . . . Robot Schematics Acquired . | . . . . . Robots Built . | . . . . . Matter . | . . . . . Time . | . . . . . Total Robot Build Rating . | . . . . . Part Schematics Acquired . | . . . . . Parts Built . | . . . . . Matter . | . . . . . Time . | . . . . . Total Part Build Rating . | . . . . . Parts Repaired . | . . . . . Time . | . . . . . Parts Recycled . | . . . . . Recycled Matter . | . . . . . Retrieved Matter . | . . . . . Retrieved Components . | . . . . . Parts Scanalyzed . | . . . . . Part Schematics Acquired . | . . . . . Parts Damaged . | . . . . . Bothacking | -11 -10 -10 -9 -9 ------------ Run | Scr Mat Min Mat Sto Used RIF Installer . | . . . . . Robots Hacked . | . . . . . Non-combat . | . . . . . Combat . | . . . . . Robot Hacks Applied . | . . . . . Relay Couplers Released . | . . . . . Robots Rewired . | . . . . . Allies Hacked . | . . . . . Hacks Repelled . | . . . . . Allies | -11 -10 -10 -9 -9 -------- Run | Scr Mat Min Mat Sto Total Allies . | . . . . . Largest Group . | . . . . . Highest-Rated Group . | . . . . . Highest-Rated Ally . | . . . . . Total Orders 7 | . . . . 7 EXPLORE 7 | . . . . 7 Ally Attacks . | . . . . . Total Damage . | . . . . . Kills . | . . . . . Allies Corrupted . | . . . . . Allies Melted . | . . . . . Intel | -11 -10 -10 -9 -9 ------- Run | Scr Mat Min Mat Sto Robot Analysis Total . | . . . . . Derelict Logs Recovered 1 | . . 1 . . Drone Launches 8 | . . . . 8 Drone Recoveries . | . . . . . Exploration | -11 -10 -10 -9 -9 ------------- Run | Scr Mat Min Mat Sto Turns Passed 1149 | 82 103 246 161 557 Spaces Moved 690 | 70 98 132 138 252 Core 17 | 10 . . . 7 Treads . | . . . . . Legs 1 | . . 1 . . Wheels 289 | 60 98 131 . . Hover . | . . . . . Flight 383 | . . . 138 245 Fastest Speed 31 | 50 80 100 31 40 Average Speed 63 | 75 86 106 39 41 Slowest Speed 150 | 80 90 150 114 100 Overloaded Moves . | . . . . . Propulsion Burnouts . | . . . . . Robots Hopped 4 | . . . . 4 Cave-ins Triggered . | . . . . . Exploration Rate (%) 28 | 4 18 43 18 57 Regions Visited 4 Branch Regions 2 Pre-discovered Areas . | . . . . . Known Exits Taken 1 | . . . 1 . Unknown Exits Taken 3 | 1 1 1 . . Scrap Searched 2 | . . 2 . . Spaces Dug . | . . . . . Terrain Destroyed . | . . . . . Melee . | . . . . . Projectile . | . . . . . AOE . | . . . . . Actions | -11 -10 -10 -9 -9 --------- Run | Scr Mat Min Mat Sto Total 1297 | 88 114 176 217 702 Wait 458 | . . . 35 423 Move 678 | 69 97 131 137 244 Hop 4 | . . . . 4 Pick Up 24 | 8 7 3 4 2 Fast Attach 6 | 2 1 2 . 1 Attach 23 | 4 2 3 10 4 Detach 3 | . . . 1 2 Swap 4 | . 3 1 . . Drop 11 | . 3 2 5 1 Fire 65 | 5 1 34 25 . Melee . | . . . . . Ram 1 | . . . . 1 Kick . | . . . . . Crush . | . . . . . Escape Stasis 17 | . . . . 17 Rewire . | . . . . . Trap . | . . . . . Miscellaneous 3 | . . . . 3 Route ------- -11/Scrapyard -10/Materials -10/Mines -9/Materials (discovered 3 exits: Min x2 / *Sto) -9/Storage History --------- Turn | Location | Event 17 | -11/Scrapyard | Discovered new exit (range 16) 83 | -11/Scrapyard | Entered Materials 146 | -10/Materials | Discovered new exit (range 12) 186 | -10/Materials | Entered Mines 251 | -10/Mines | Learned Materials stockpile data 377 | -10/Mines | Core integrity fell below 50% 420 | -10/Mines | Discovered new exit (range 11) 426 | -10/Mines | Lost 3 parts (1p2w) 432 | -10/Mines | Entered Materials 432 | -9/Materials | Evolved 2 slots: Propulsion x2 574 | -9/Materials | Lost 8 parts (1p4n1u2w) 583 | -9/Materials | Discovered new exit (range 10) 583 | -9/Materials | Identified exit to Mines 583 | -9/Materials | Identified exit to Storage 593 | -9/Materials | Entered Storage 723 | -9/Storage | Build established: Mutant 1080 | -9/Storage | Found Prototype Protection 1080 | -9/Storage | Identified Lgt. Regenerative Plating 1128 | -9/Storage | Core integrity fell below 50% 1143 | -9/Storage | Core integrity fell below 20% 1150 | -9/Storage | Destroyed by S-10 Pest with Light Assault Rifle Last Messages --------------- 01128_ Field strength at 66. 01129_ Field strength at 59. 01130_ Field strength at 48. 01131_ Field strength at 41. 01132_ Flight Unit destroyed. 01132_ Field strength at 32. 01133_ Field strength at 24. 01134_ Field strength at 13. 01135_ Field strength at 5. 01136_ Stasis field depleted. 01136_ Triggered Stasis Trap. 01136_ A bubble of rippling energy engulfs the area. 01136_ Field strength at 94. 01137_ Field strength at 88. 01142_ Field strength at 66. 01143_ Field strength at 49. 01144_ Field strength at 39. 01146_ Field strength at 29. 01147_ Field strength at 9. 01148_ Stasis field depleted. Map ----- +----------------------------------------------------+ | ?????????????????????????????? | | ?????????????????????????????? | | ?????????????????????????????? | | ?????????????????????????????? | | ?????????????????????????????? | | ?????????????????????????????? | | ?????????????????????????????? | | ?????????????????????????????? | | ?????????????????????????????? | | ?????????????????????????????? | | ???? ??????????????????????? | | ???? ??????????????????????? | | ???? ??????????????????????? | | ???# #?????????????????????? | | ???# #?????????????????????? | | ???# +?????????????????????? | | ???# %#?????????????????????? | | ???# #?????????????????????? | | ???# s +?????????????????????? | | ???#s s#?????????????????????? | | ???# #?????????????????????? | | ???# #?????????????????????? | | ???# #?????????????????????? | | ???# #?????????????????????? | | ???# #?????????????????????? | | ???# @k##????????????????????? | | ???# # ########????????????? | | ???# # #????????????? | | ???# ^# #????????????? | | ???# # #????????????? | | ???# # !!! #????????????? | | ???# # !! #????????????? | | ???# g # !! #????????????? | | ???#gYg# = #????????????? | | ???# Y # #????????????? | | ???# #?? ??????????????? | | ???# a #####+#####???????????? | | ???# #???????????? | | ???# #???####????? | | ???# #???"""#????? | | ???##+######## ####"T"####?? | | ?????????????# ## ##? | | ?????????????# ## """ #? | | ?????????????# ## """ ### | | ?????????????# ## """ ""# | | ?????????????# ## T"# | | ?????????????# ## """ ""# | | ?????????????# ## """ ### | | ?????????????# ## """ #?? | | ????????????## ## #?? | +----------------------------------------------------+ Best States ------------- Heat Dissipation 47 Energy Generation 10 Energy Capacity 250 Matter Stores 300 Matter Capacity 300 Sight Range 16 Terrain Scan Density 10 Armor Coverage 150 Evasion (%) 63 Item Schematics ----------------- None Robot Schematics ------------------ None Fabricated ------------ Nothing Alien Tech Used ----------------- None Achievements -------------- None Challenges ------------ None Game ------ Seed MappingSingularityCloak Manual? 0 Play Time 00:17:30 Cumulative 97.2 hours Start 2019.12.24 @ 03:08:59 End 2019.12.24 @ 03:25:34 Sessions 1 Manual Loads 0 Difficulty Rogue Special Mode None Game No. 92 Rogue 92 Adventurer 0 Explorer 0 Win Type - Total 0 Types 0/0/0/0/0/0/0 Lore% 46 Gallery% 62 Achievement% 30 Wizard Run 0 Options --------- ASCII 0 Keyboard 0 Movement Mouse Keybinds 0 Fullscreen 2 Font 18/Terminus Map View 76x50 Tactical HUD 1 Map Filters NONE Filters NONE Steam 1 RUN: fe46d89a-3172-4467-b371-45dd2c210ebb